[Event "Qatar Masters-B 2024"]
[Site "Doha"]
[Date "2024.12.06"]
[Round "4.1"]
[White "Zozek Salah Mohammed"]
[Black "Adeimi, Michel"]
[Result "1/2-1/2"]
[ECO "A31"]
[WhiteElo "2206"]
[BlackElo "2004"]
[Annotator "RC"]
[PlyCount "209"]
[EventDate "2024.11.24"]
[EventType "swiss"]
[EventCountry "QAT"]
[SourceTitle "playchess.com"]
[Source "ChessBase"]
[SourceQuality "1"]
[TimeControl "40/5400+30:1800+30"]

1. d4 {[%emt 0:00:03]} Nf6 {[%emt 0:00:09]} 2. Nf3 {[%emt 0:00:33]} c5 {[%emt 0:00:11]} 3. c4 {[%emt 0:03:24]} cxd4 {[%emt 0:00:12]} 4. Nxd4 {[%emt 0:00:01]} e5 {[%emt 0:00:18]} 5. Nc2 {[%emt 0:00:33]} d5 {[%emt 0:00:12]} 6. cxd5 {[%emt 0:01:14]} Qxd5 {[%emt 0:01:42]} 7. Qxd5 {[%emt 0:01:34]} Nxd5 {[%emt 0:00:46]} 8. g3 {[%emt 0:02:49]} Nc6 {[%emt 0:06:55]} 9. Bg2 {[%emt 0:01:25]} Ndb4 {[%emt 0:01:39]} 10. Nba3 {[%emt 0:05:08]} Bf5 {[%emt 0:01:03]} 11. Ne3 {[%emt 0:08:08]} Be6 {[%emt 0:00:16]} 12. Nb5 {[%emt 0:01:43]} Rc8 {[%emt 0:03:08]} 13. a3 {[%emt 0:02:06]} Nd4 {[%emt 0:04:42]} 14. Nxd4 {[%emt 0:15:52]} exd4 {[%emt 0:00:47]} 15. axb4 {[%emt 0:00:37]} dxe3 {[%emt 0:04:27]} 16. Bxe3 {[%emt 0:04:51]} Bxb4+ {[%emt 0:00:10]} 17. Bd2 {[%emt 0:27:51]} Rc4 {[%emt 0:08:35]} 18. Bxb4 {[%emt 0:01:00]} Rxb4 {[%emt 0:00:16]} 19. Rxa7 {[%emt 0:00:26]} O-O {[%emt 0:00:42]} 20. Rxb7 {[%emt 0:01:19]} Rxb7 {[%emt 0:00:22]} 21. Bxb7 {[%emt 0:00:01]} Rb8 {[%emt 0:00:26]} 22. Bf3 {[%emt 0:00:12]} Rxb2 {[%emt 0:00:48]} 23. O-O {[%emt 0:00:08]} g6 {[%emt 0:00:27]} 24. Kg2 {[%emt 0:05:26]} Kg7 {[%emt 0:00:11]} 25. Rc1 {[%emt 0:00:08]} Rd2 {[%emt 0:00:44]} 26. Rc5 {[%emt 0:01:59]} Kf6 {[%emt 0:00:16]} 27. g4 {[%emt 0:01:07]} g5 {[%emt 0:00:54]} 28. Kg3 {[%emt 0:00:09]} h6 {[%emt 0:00:11]} 29. h4 {[%emt 0:00:11]} Rd1 {[%emt 0:00:34]} 30. h5 {[%emt 0:01:52]} Rg1+ {[%emt 0:00:33]} 31. Kh2 {[%emt 0:00:31]} Rf1 {[%emt 0:02:35]} 32. Kg2 {[%emt 0:00:11]} Rb1 {[%emt 0:00:19]} 33. Rc6 {[%emt 0:03:08]} Ke5 {[%emt 0:00:38]} 34. Ra6 {[%emt 0:00:50]} Rc1 {[%emt 0:01:06]} 35. Rb6 {[%emt 0:02:04]} Rc4 {[%emt 0:01:01]} 36. Kg3 {[%emt 0:00:53]} Rc1 {[%emt 0:00:09]} 37. Rb8 {[%emt 0:03:11]} Kf6 {[%emt 0:01:40]} 38. Rd8 {[%emt 0:02:16]} Rg1+ {[%emt 0:00:28]} 39. Kh2 {[%emt 0:00:08]} Rc1 {[%emt 0:00:27]} 40. e3 {[%emt 0:00:39]} Rc2 {[%emt 0:00:58]} 41. Kg3 {[%emt 0:30:17]} Rc1 {[%emt 0:30:11]} 42. Bd1 {[%emt 0:02:17]} Rc8 {[%emt 0:01:13]} 43. Rd3 {[%emt 0:00:21]} Rc4 {[%emt 0:01:22]} 44. f3 {[%emt 0:00:35]} Rb4 {[%emt 0:03:42]} 45. Rd8 {[%emt 0:00:19]} Rb7 {[%emt 0:01:05]} 46. Bc2 {[%emt 0:00:23]} Rc7 {[%emt 0:00:27]} 47. Be4 {[%emt 0:00:15]} Rc8 {[%emt 0:00:30]} 48. Rd6 {[%emt 0:00:09]} Ke5 {[%emt 0:00:48]} 49. Ra6 {[%emt 0:01:09]} Rc3 {[%emt 0:00:30]} 50. Ra5+ {[%emt 0:00:11]} Kf6 {[%emt 0:00:12]} 51. Kf2 {[%emt 0:00:31]} Bd7 {[%emt 0:04:55]} 52. Ra6+ {[%emt 0:00:32]} Kg7 {[%emt 0:00:45]} 53. Ra7 {[%emt 0:02:28]} Be6 {[%emt 0:00:50]} 54. Ke2 {[%emt 0:00:41]} Rb3 {[%emt 0:00:50]} 55. Ra4 {[%emt 0:01:27]} Rc3 {[%emt 0:01:04]} 56. Bd3 {[%emt 0:00:31]} Rc1 {[%emt 0:01:27]} 57. Kd2 {[%emt 0:00:20]} Rh1 {[%emt 0:00:29]} 58. Bc4 {[%emt 0:00:22]} Rh2+ {[%emt 0:01:13]} 59. Kd3 {[%emt 0:00:17]} Bxc4+ {[%emt 0:04:08]} 60. Rxc4 {[%emt 0:00:02]} Ra2 {[%emt 0:01:17]} 61. e4 {[%emt 0:01:27]} Ra3+ {[%emt 0:00:30]} 62. Rc3 {[%emt 0:00:33]} Ra1 {[%emt 0:00:20]} 63. Kd4 {[%emt 0:00:30]} Ra4+ {[%emt 0:00:54]} 64. Ke3 {[%emt 0:00:01]} Ra1 {[%emt 0:00:30]} 65. e5 {[%emt 0:00:46]} Re1+ {[%emt 0:01:13]} 66. Kd4 {[%emt 0:00:14]} Rd1+ {[%emt 0:01:28]} 67. Ke4 {[%emt 0:00:52]} Ra1 {[%emt 0:00:33]} 68. Rc4 {[%emt 0:00:33]} Ra3 {[%emt 0:00:20]} 69. Rb4 {[%emt 0:00:37]} Ra1 {[%emt 0:03:26]} 70. Rb3 {[%emt 0:00:36]} Ra4+ {[%emt 0:00:19]} 71. Ke3 {[%emt 0:00:15]} Ra5 {[%emt 0:00:13]} 72. f4 {[%emt 0:00:36]} gxf4+ {[%emt 0:00:14]} 73. Kxf4 {[%emt 0:00:01]} Ra1 {[%emt 0:01:17]} 74. Rf3 {[%emt 0:00:43]} Re1 {[%emt 0:00:59]} 75. Kf5 {[%emt 0:00:19]} Re2 {[%emt 0:00:17]} 76. Ra3 {[%emt 0:00:58]} Rf2+ {[%emt 0:00:31]} 77. Ke4 {[%emt 0:00:02]} Rg2 {[%emt 0:00:48]} 78. Kf3 {[%emt 0:00:49]} Rb2 {[%emt 0:03:42]} 79. Ra7 {[%emt 0:00:23]} Kg8 {[%emt 0:02:05]} 80. Rc7 {[%emt 0:00:50]} Rb1 {[%emt 0:00:41]} 81. Kf4 {[%emt 0:00:32]} Rf1+ {[%emt 0:00:16]} 82. Ke4 {[%emt 0:00:01]} Re1+ {[%emt 0:01:06]} 83. Kf4 {[%emt 0:00:19]} Rf1+ {[%emt 0:00:32]} 84. Kg3 {[%emt 0:00:07]} Rg1+ {[%emt 0:00:17]} 85. Kf3 {[%emt 0:00:09]} Rf1+ {[%emt 0:00:24]} 86. Kg2 {[%emt 0:00:03]} Rf4 {[%emt 0:00:46]} 87. Kg3 {[%emt 0:00:07]} Re4 {[%emt 0:01:11]} 88. Rc5 {[%emt 0:00:21]} Re1 {[%emt 0:00:36]} 89. Rc8+ {[%emt 0:01:55]} Kg7 {[%emt 0:00:19]} 90. Re8 {[%emt 0:00:09]} Rg1+ {[%emt 0:01:08]} 91. Kf3 {[%emt 0:00:31]} Rf1+ {[%emt 0:00:14]} 92. Kg2 {[%emt 0:01:18]} Rf4 {[%emt 0:00:38]} 93. e6 {[%emt 0:01:03]} fxe6 {[%emt 0:02:50]} 94. Kg3 {[%emt 0:00:13]} Re4 {[%emt 0:00:12]} 95. Re7+ {[%emt 0:00:01]} Kg8 {[%emt 0:00:29]} 96. Kf3 {[%emt 0:00:01]} Re1 {[%emt 0:00:42]} 97. Kf4 {[%emt 0:00:01]} Re2 {[%emt 0:00:51]} 98. Ra7 {[%emt 0:00:10]} Re1 {[%emt 0:01:03]} 99. Ra2 {[%emt 0:01:30]} Kf7 {[%emt 0:00:48]} 100. Ra7+ {[%emt 0:00:51]} Kg8 {[%emt 0:02:16]} 101. Kf3 {[%emt 0:00:22]} Re5 {[%emt 0:00:19]} 102. Re7 {[%emt 0:00:02]} Re1 {[%emt 0:00:39]} 103. g5 {[%emt 0:00:36]} hxg5 {[%emt 0:00:53]} 104. h6 {[%emt 0:00:01]} Rg1 {[%emt 0:01:53]} 105. Ke4 {[%emt 0:01:58]} 1/2-1/2

[Event "Qatar Masters-B 2024"]
[Site "Doha"]
[Date "2024.12.06"]
[Round "4.2"]
[White "Zayed, Ali Al-hamed"]
[Black "Mahmood Lodhi"]
[Result "0-1"]
[ECO "E90"]
[WhiteElo "2039"]
[BlackElo "2150"]
[Annotator "RC"]
[PlyCount "126"]
[EventDate "2024.11.24"]
[EventType "swiss"]
[EventCountry "QAT"]
[SourceTitle "playchess.com"]
[Source "ChessBase"]
[SourceQuality "1"]
[TimeControl "40/5400+30:1800+30"]

1. d4 {[%emt 0:00:05]} Nf6 {[%emt 0:00:11]} 2. c4 {[%emt 0:00:26]} g6 {[%emt 0:00:59]} 3. Nc3 {[%emt 0:00:07]} Bg7 {[%emt 0:00:16]} 4. e4 {[%emt 0:00:10]} d6 {[%emt 0:00:07]} 5. h3 {[%emt 0:00:25]} O-O {[%emt 0:00:11]} 6. Nf3 {[%emt 0:00:14]} b6 {[%emt 0:02:49]} 7. Bd3 {[%emt 0:04:51]} Bb7 {[%emt 0:01:23]} 8. O-O {[%emt 0:00:14]} Nbd7 {[%emt 0:00:11]} 9. Be3 {[%emt 0:03:14]} c5 {[%emt 0:05:41]} 10. d5 {[%emt 0:02:23]} Ne5 {[%emt 0:03:57]} 11. Be2 {[%emt 0:01:18]} Nxf3+ {[%emt 0:01:10]} 12. Bxf3 {[%emt 0:00:04]} Ne8 {[%emt 0:09:21]} 13. Be2 {[%emt 0:04:22]} e5 {[%emt 0:05:16]} 14. f4 {[%emt 0:06:33]} exf4 {[%emt 0:06:37]} 15. Bxf4 {[%emt 0:00:59]} Qe7 {[%emt 0:01:41]} 16. Qd2 {[%emt 0:04:27]} Bd4+ {[%emt 0:05:01]} 17. Kh1 {[%emt 0:00:34]} Ng7 {[%emt 0:00:15]} 18. Nb5 {[%emt 0:07:50]} Be5 {[%emt 0:01:29]} 19. Bxe5 {[%emt 0:00:57]} Qxe5 {[%emt 0:00:30]} 20. Qc3 {[%emt 0:06:11]} Qxc3 {[%emt 0:17:03]} 21. bxc3 {[%emt 0:07:18]} Ne8 {[%emt 0:00:57]} 22. Rab1 {[%emt 0:04:28]} Ba6 {[%emt 0:00:43]} 23. Bg4 {[%emt 0:02:54]} Bxb5 {[%emt 0:01:48]} 24. Rxb5 {[%emt 0:02:57]} Nc7 {[%emt 0:02:52]} 25. Rb3 {[%emt 0:01:28]} Rfe8 {[%emt 0:06:59]} 26. Bf3 {[%emt 0:04:05]} Re7 {[%emt 0:03:15]} 27. a4 {[%emt 0:00:28]} Ne8 {[%emt 0:02:36]} 28. a5 {[%emt 0:07:04]} bxa5 {[%emt 0:05:58]} 29. Ra1 {[%emt 0:00:17]} Nf6 {[%emt 0:00:11]} 30. e5 {[%emt 0:00:28]} Rxe5 {[%emt 0:00:48]} 31. Rxa5 {[%emt 0:00:09]} Re7 {[%emt 0:00:30]} 32. Ra6 {[%emt 0:02:35]} Rd8 {[%emt 0:00:40]} 33. Kh2 {[%emt 0:02:54]} h5 {[%emt 0:00:38]} 34. h4 {[%emt 0:00:42]} Ne4 {[%emt 0:01:36]} 35. Bxe4 {[%emt 0:02:02]} Rxe4 {[%emt 0:01:18]} 36. Kh3 {[%emt 0:02:19]} Rd7 {[%emt 0:01:17]} 37. Ra4 {[%emt 0:01:00]} Kg7 {[%emt 0:00:29]} 38. g3 {[%emt 0:02:18]} Kf6 {[%emt 0:00:36]} 39. Kg2 {[%emt 0:01:29]} Kf5 {[%emt 0:00:38]} 40. Rb2 {[%emt 0:01:45]} Re3 {[%emt 0:01:15]} 41. Rf2+ {[%emt 0:30:48]} Ke4 {[%emt 0:31:32]} 42. Ra1 {[%emt 0:05:04]} Kd3 {[%emt 0:00:46]} 43. Rf4 {[%emt 0:01:11]} Re2+ {[%emt 0:01:20]} 44. Kf1 {[%emt 0:01:04]} Rh2 {[%emt 0:00:59]} 45. Kg1 {[%emt 0:04:38]} Rd2 {[%emt 0:00:08]} 46. Raf1 {[%emt 0:02:01]} f5 {[%emt 0:00:33]} 47. Ra1 {[%emt 0:01:47]} Kxc3 {[%emt 0:01:47]} 48. Ra3+ {[%emt 0:00:36]} Kb4 {[%emt 0:00:34]} 49. Ra1 {[%emt 0:00:47]} Rb2 {[%emt 0:00:36]} 50. Ra6 {[%emt 0:00:41]} Rc2 {[%emt 0:00:25]} 51. Ra1 {[%emt 0:00:12]} a5 {[%emt 0:00:28]} 52. Rb1+ {[%emt 0:00:46]} Kc3 {[%emt 0:00:08]} 53. Ra1 {[%emt 0:00:46]} Ra7 {[%emt 0:00:15]} 54. Ra4 {[%emt 0:00:37]} Kb3 {[%emt 0:00:25]} 55. Ra1 {[%emt 0:00:17]} a4 {[%emt 0:00:07]} 56. Rb1+ {[%emt 0:00:19]} Kc3 {[%emt 0:00:16]} 57. Ra1 {[%emt 0:01:25]} a3 {[%emt 0:00:31]} 58. Rf3+ {[%emt 0:00:17]} Kb4 {[%emt 0:00:09]} 59. Rb1+ {[%emt 0:00:20]} Rb2 {[%emt 0:00:02]} 60. Ra1 {[%emt 0:00:52]} a2 {[%emt 0:00:08]} 61. Rff1 {[%emt 0:00:54]} Kxc4 {[%emt 0:00:22]} 62. Rfd1 {[%emt 0:00:02]} Ra3 {[%emt 0:00:28]} 63. Rac1+ {[%emt 0:00:48]} Kb4 {[%emt 0:00:25]} 0-1

[Event "Qatar Masters-B 2024"]
[Site "Doha"]
[Date "2024.12.06"]
[Round "4.3"]
[White "Alhassadi, Yousef A."]
[Black "Hong, Mingren"]
[Result "1/2-1/2"]
[ECO "B22"]
[WhiteElo "2126"]
[BlackElo "1951"]
[Annotator "NA RC"]
[PlyCount "83"]
[EventDate "2024.11.24"]
[EventType "swiss"]
[EventCountry "QAT"]
[SourceTitle "playchess.com"]
[Source "ChessBase"]
[SourceQuality "1"]
[TimeControl "40/5400+30:1800+30"]

1. e4 {[%emt 0:00:03]} c5 {[%emt 0:00:05]} 2. c3 {[%emt 0:00:03]} Nf6 {[%emt 0:00:04]} 3. e5 {[%emt 0:00:05]} Nd5 {[%emt 0:00:04]} 4. Nf3 {[%emt 0:00:04]} e6 {[%emt 0:00:05]} 5. Bc4 {[%emt 0:00:50]} Nc6 {[%emt 0:00:06]} 6. d4 {[%emt 0:01:29]} cxd4 {[%emt 0:00:07]} 7. cxd4 {[%emt 0:00:05]} d6 {[%emt 0:00:04]} 8. O-O {[%emt 0:00:14]} Be7 {[%emt 0:00:06]} 9. Qe2 {[%emt 0:00:23]} O-O {[%emt 0:00:20]} 10. Nc3 $11 {[%emt 0:00:28]} Nxc3 {[%emt 0:01:30]} 11. bxc3 {[%emt 0:01:06]} dxe5 {[%emt 0:00:32]} 12. dxe5 {[%emt 0:00:07]} Qc7 {[%emt 0:00:27]} 13. Bd3 {[%emt 0:01:12]} b6 {[%emt 0:00:19]} 14. h4 {[%emt 0:09:49]} Bb7 {[%emt 0:01:39]} 15. h5 {[%emt 0:03:07]} Na5 {[%emt 0:00:19]} 16. h6 {[%emt 0:05:41]} g6 {[%emt 0:00:04]} 17. Be4 {[%emt 0:00:18]} Bxe4 {[%emt 0:00:32]} 18. Qxe4 {[%emt 0:01:51]} Qc4 {[%emt 0:00:07]} 19. Re1 {[%emt 0:02:02]} Qxe4 {[%emt 0:00:24]} 20. Rxe4 {[%emt 0:02:24]} Rac8 {[%emt 0:00:18]} 21. Bg5 {[%emt 0:02:29]} Nc6 {[%emt 0:08:20]} 22. Rd1 {[%emt 0:32:42]} Rfd8 {[%emt 0:03:26]} 23. Rxd8+ {[%emt 0:06:51]} Rxd8 {[%emt 0:00:04]} 24. Bxe7 {[%emt 0:01:21]} Nxe7 {[%emt 0:00:02]} 25. g4 {[%emt 0:00:26]} Rd3 {[%emt 0:05:27]} 26. Rd4 {[%emt 0:09:35]} Rxd4 {[%emt 0:00:04]} 27. Nxd4 {[%emt 0:02:50]} Nd5 {[%emt 0:00:37]} 28. Ne2 {[%emt 0:04:07]} f6 {[%emt 0:00:37]} 29. exf6 {[%emt 0:08:18]} Nxf6 {[%emt 0:00:02]} 30. f3 {[%emt 0:00:09]} g5 {[%emt 0:01:40]} 31. Nd4 {[%emt 0:00:15]} Kf7 {[%emt 0:00:30]} 32. Nc6 {[%emt 0:00:30]} Nd5 {[%emt 0:00:20]} 33. c4 {[%emt 0:03:02]} Ne3 {[%emt 0:00:07]} 34. Nxa7 {[%emt 0:00:39]} Nxc4 {[%emt 0:00:02]} 35. Nc6 {[%emt 0:00:15]} Kg6 {[%emt 0:00:36]} 36. Nd4 {[%emt 0:01:21]} e5 {[%emt 0:02:49]} 37. Nf5 {[%emt 0:00:04]} Nd2 {[%emt 0:00:41]} 38. Kf2 {[%emt 0:00:13]} e4 {[%emt 0:00:07]} 39. Ke3 {[%emt 0:01:29]} Nxf3 {[%emt 0:00:05]} 40. Kxe4 {[%emt 0:00:04]} Nh2 {[%emt 0:02:41]} 41. Ne3 {[%emt 0:30:04]} Kxh6 {[%emt 0:30:11]} 42. Kd5 {[%emt 0:01:22]} 1/2-1/2

[Event "Qatar Masters-B 2024"]
[Site "Doha"]
[Date "2024.12.06"]
[Round "4.4"]
[White "ADEWOLE, Adeyinka Samuel"]
[Black "Shermuhammadov, Samandar"]
[Result "0-1"]
[ECO "A03"]
[WhiteElo "1954"]
[BlackElo "2108"]
[Annotator "RC"]
[PlyCount "72"]
[EventDate "2024.11.24"]
[EventType "swiss"]
[EventCountry "QAT"]
[SourceTitle "playchess.com"]
[Source "ChessBase"]
[SourceQuality "1"]
[TimeControl "40/5400+30:1800+30"]

1. f4 {[%emt 0:00:22]} d5 {[%emt 0:00:59]} 2. Nf3 {[%emt 0:00:09]} Nf6 {[%emt 0:00:15]} 3. e3 {[%emt 0:00:07]} c5 {[%emt 0:00:11]} 4. b3 {[%emt 0:00:08]} Nc6 {[%emt 0:00:14]} 5. Bb5 {[%emt 0:00:08]} a6 {[%emt 0:00:56]} 6. Bxc6+ {[%emt 0:00:08]} bxc6 7. Bb2 {[%emt 0:00:13]} a5 {[%emt 0:00:32]} 8. a4 {[%emt 0:00:46]} Bg4 {[%emt 0:00:40]} 9. d3 {[%emt 0:00:30]} Qb6 {[%emt 0:01:35]} 10. Nbd2 {[%emt 0:00:17]} e6 {[%emt 0:00:29]} 11. O-O {[%emt 0:00:38]} Be7 {[%emt 0:03:00]} 12. Qe1 {[%emt 0:00:13]} Bxf3 {[%emt 0:01:20]} 13. Rxf3 {[%emt 0:00:21]} O-O-O {[%emt 0:01:54]} 14. Rb1 {[%emt 0:05:37]} Ne8 {[%emt 0:00:20]} 15. c4 {[%emt 0:00:19]} d4 {[%emt 0:01:22]} 16. Ba3 {[%emt 0:01:53]} dxe3 {[%emt 0:03:55]} 17. Qxe3 {[%emt 0:00:27]} Rd4 {[%emt 0:00:25]} 18. f5 {[%emt 0:00:25]} e5 {[%emt 0:03:02]} 19. Qxe5 {[%emt 0:03:38]} Bd6 {[%emt 0:00:06]} 20. Qe1 {[%emt 0:02:56]} Nf6 {[%emt 0:00:38]} 21. Bb2 {[%emt 0:00:28]} Re8 {[%emt 0:00:16]} 22. Ne4 {[%emt 0:01:52]} Nxe4 {[%emt 0:03:58]} 23. Bxd4 {[%emt 0:00:19]} cxd4 {[%emt 0:00:02]} 24. dxe4 {[%emt 0:02:13]} Bb4 {[%emt 0:00:35]} 25. Qh4 {[%emt 0:00:40]} d3+ {[%emt 0:00:07]} 26. Kf1 {[%emt 0:00:38]} Qd4 {[%emt 0:00:37]} 27. f6 {[%emt 0:02:36]} d2 {[%emt 0:10:34]} 28. Qh3+ {[%emt 0:13:36]} Re6 {[%emt 0:03:07]} 29. Rd1 {[%emt 0:16:49]} Qxe4 {[%emt 0:00:17]} 30. Kg1 {[%emt 0:00:08]} g5 {[%emt 0:07:44]} 31. Qf5 {[%emt 0:02:36]} Qxf5 {[%emt 0:00:29]} 32. Rxf5 {[%emt 0:00:06]} Re1+ {[%emt 0:00:01]} 33. Rf1 {[%emt 0:00:03]} Bc5+ {[%emt 0:00:03]} 34. Kh1 {[%emt 0:00:04]} Bf2 {[%emt 0:00:03]} 35. g3 {[%emt 0:01:14]} Rxf1+ {[%emt 0:00:07]} 36. Rxf1 {[%emt 0:00:06]} Be1 {[%emt 0:00:03]} 0-1

[Event "Qatar Masters-B 2024"]
[Site "Doha"]
[Date "2024.12.06"]
[Round "4.5"]
[White "Syed Abdul Khader"]
[Black "Araoune, Saadi"]
[Result "1-0"]
[ECO "A06"]
[WhiteElo "1943"]
[BlackElo "2085"]
[Annotator "NA RC"]
[PlyCount "69"]
[EventDate "2024.11.24"]
[EventType "swiss"]
[EventCountry "QAT"]
[SourceTitle "playchess.com"]
[Source "ChessBase"]
[SourceQuality "1"]
[TimeControl "40/5400+30:1800+30"]

1. Nf3 {[%emt 0:00:06]} Nf6 {[%emt 0:00:13]} 2. b3 {[%emt 0:00:35]} d5 {[%emt 0:00:34]} 3. e3 {[%emt 0:00:28]} c5 {[%emt 0:00:06]} 4. Bb2 {[%emt 0:00:36]} Nc6 {[%emt 0:00:07]} 5. Bb5 $11 {[%emt 0:00:21]} a6 {[%emt 0:03:23]} 6. Bxc6+ {[%emt 0:00:09]} bxc6 {[%emt 0:00:02]} 7. O-O {[%emt 0:00:39]} e6 {[%emt 0:01:30]} 8. Ne5 {[%emt 0:02:33]} Qc7 {[%emt 0:00:32]} 9. d3 {[%emt 0:00:52]} Bd6 {[%emt 0:01:40]} 10. f4 {[%emt 0:01:27]} O-O {[%emt 0:01:25]} 11. Nd2 {[%emt 0:00:56]} Nd7 {[%emt 0:03:29]} 12. Nxd7 {[%emt 0:13:17]} Bxd7 {[%emt 0:00:13]} 13. Kh1 {[%emt 0:00:48]} Rab8 {[%emt 0:04:50]} 14. Qe2 {[%emt 0:10:42]} f6 {[%emt 0:00:28]} 15. Qf2 {[%emt 0:08:52]} Be8 {[%emt 0:24:22]} 16. e4 {[%emt 0:08:27]} Bg6 {[%emt 0:03:10]} 17. Rae1 {[%emt 0:01:07]} Rfe8 {[%emt 0:04:48]} 18. e5 {[%emt 0:02:25]} fxe5 {[%emt 0:08:14]} 19. Bxe5 {[%emt 0:00:47]} Bxe5 {[%emt 0:08:16]} 20. Rxe5 {[%emt 0:00:30]} Qa5 {[%emt 0:00:05]} 21. Nf3 {[%emt 0:13:25]} c4 {[%emt 0:08:18]} 22. Nd4 {[%emt 0:06:42]} Qxa2 {[%emt 0:03:28]} 23. Nxe6 {[%emt 0:03:37]} Rb7 {[%emt 0:15:44]} 24. f5 {[%emt 0:10:28]} Bf7 {[%emt 0:04:55]} 25. dxc4 {[%emt 0:00:08]} dxc4 {[%emt 0:00:32]} 26. Qd4 {[%emt 0:00:13]} Bxe6 {[%emt 0:02:33]} 27. Rxe6 {[%emt 0:00:08]} Rf8 {[%emt 0:00:27]} 28. Qxc4 {[%emt 0:00:08]} Rbf7 {[%emt 0:00:33]} 29. Rxc6 {[%emt 0:01:07]} a5 {[%emt 0:00:27]} 30. Rc7 {[%emt 0:00:15]} a4 {[%emt 0:00:29]} 31. Re1 {[%emt 0:00:30]} h6 {[%emt 0:00:33]} 32. h4 {[%emt 0:00:22]} axb3 {[%emt 0:00:22]} 33. Rxf7 {[%emt 0:00:12]} Rxf7 {[%emt 0:00:39]} 34. Re8+ {[%emt 0:00:05]} Kh7 {[%emt 0:00:13]} 35. Qxf7 {[%emt 0:00:05]} 1-0

[Event "Qatar Masters-B 2024"]
[Site "Doha"]
[Date "2024.12.06"]
[Round "4.6"]
[White "Akhmediyar, Yernur"]
[Black "Achour, Mohamed Anis"]
[Result "1-0"]
[ECO "D35"]
[WhiteElo "1898"]
[BlackElo "2051"]
[Annotator "NA RC"]
[PlyCount "67"]
[EventDate "2024.11.24"]
[EventType "swiss"]
[EventCountry "QAT"]
[SourceTitle "playchess.com"]
[Source "ChessBase"]
[SourceQuality "1"]
[TimeControl "40/5400+30:1800+30"]

1. c4 {[%emt 0:00:07]} e6 {[%emt 0:00:11]} 2. Nc3 {[%emt 0:00:24]} d5 {[%emt 0:00:05]} 3. d4 {[%emt 0:00:20]} Be7 {[%emt 0:00:07]} 4. Nf3 {[%emt 0:06:09]} Nf6 {[%emt 0:00:56]} 5. Bf4 {[%emt 0:03:57]} O-O {[%emt 0:00:23]} 6. e3 {[%emt 0:00:30]} Nbd7 {[%emt 0:00:16]} 7. cxd5 {[%emt 0:05:19]} exd5 {[%emt 0:00:36]} 8. Bd3 {[%emt 0:00:20]} c6 {[%emt 0:01:02]} 9. Qc2 {[%emt 0:02:31]} Re8 {[%emt 0:02:09]} 10. h3 {[%emt 0:08:01]} Nf8 {[%emt 0:01:20]} 11. Ne5 {[%emt 0:01:30]} Ne6 {[%emt 0:02:43]} 12. Bh2 {[%emt 0:01:18]} g6 {[%emt 0:03:29]} 13. f4 {[%emt 0:03:24]} c5 {[%emt 0:02:48]} 14. f5 {[%emt 0:06:10]} gxf5 {[%emt 0:06:49]} 15. Bxf5 {[%emt 0:01:14]} cxd4 {[%emt 0:00:40]} 16. Bxe6 {[%emt 0:00:48]} Bxe6 {[%emt 0:00:32]} 17. exd4 {[%emt 0:00:27]} Ne4 {[%emt 0:08:47]} 18. O-O {[%emt 0:03:38]} Rc8 {[%emt 0:01:25]} 19. Qd3 {[%emt 0:03:42]} f5 {[%emt 0:01:33]} 20. Nxe4 {[%emt 0:13:55]} dxe4 {[%emt 0:00:44]} 21. Qg3+ {[%emt 0:00:33]} Kh8 {[%emt 0:08:27]} 22. Rxf5 {[%emt 0:08:39]} Qxd4+ {[%emt 0:01:05]} 23. Kh1 {[%emt 0:00:54]} Qxb2 {[%emt 0:09:51]} 24. Raf1 {[%emt 0:03:17]} Rg8 {[%emt 0:01:56]} 25. Nf7+ {[%emt 0:01:33]} Bxf7 {[%emt 0:00:06]} 26. Qe5+ {[%emt 0:00:14]} Bf6 {[%emt 0:00:57]} 27. Qxf6+ {[%emt 0:02:12]} Qxf6 {[%emt 0:00:12]} 28. Rxf6 {[%emt 0:00:06]} Bg6 {[%emt 0:21:24]} 29. Be5 {[%emt 0:07:28]} Kg7 {[%emt 0:00:22]} 30. R6f4+ {[%emt 0:02:05]} Kh6 {[%emt 0:00:10]} 31. Rh4+ {[%emt 0:00:11]} Bh5 {[%emt 0:02:24]} 32. g4 {[%emt 0:01:00]} Rgf8 {[%emt 0:00:43]} 33. Bf4+ {[%emt 0:03:54]} Rxf4 {[%emt 0:02:12]} 34. Rxh5+ {[%emt 0:00:13]} 1-0

[Event "Qatar Masters-B 2024"]
[Site "Doha"]
[Date "2024.12.06"]
[Round "4.7"]
[White "Mosallam, Mohammad"]
[Black "Maraimov, Khudoyor"]
[Result "0-1"]
[ECO "B23"]
[WhiteElo "1753"]
[BlackElo "1832"]
[Annotator "NA RC"]
[PlyCount "93"]
[EventDate "2024.11.24"]
[EventType "swiss"]
[EventCountry "QAT"]
[SourceTitle "playchess.com"]
[Source "ChessBase"]
[SourceQuality "1"]
[TimeControl "40/5400+30:1800+30"]

1. e4 {[%emt 0:00:09]} c5 {[%emt 0:01:02]} 2. Nc3 {[%emt 0:00:28]} e6 {[%emt 0:00:47]} 3. f4 {[%emt 0:00:12]} Nc6 {[%emt 0:01:33]} 4. Nf3 {[%emt 0:00:07]} a6 {[%emt 0:00:34]} 5. d3 {[%emt 0:01:51]} b5 {[%emt 0:00:23]} 6. g3 {[%emt 0:00:25]} Bb7 {[%emt 0:00:31]} 7. Bg2 {[%emt 0:00:08]} Qc7 {[%emt 0:03:07]} 8. O-O {[%emt 0:02:03]} Nd4 {[%emt 0:09:14]} 9. f5 {[%emt 0:09:25]} Bd6 {[%emt 0:10:04]} 10. Ng5 {[%emt 0:08:12]} Nf6 {[%emt 0:05:24]} 11. fxe6 {[%emt 0:06:17]} dxe6 {[%emt 0:03:04]} 12. Bf4 {[%emt 0:16:24]} e5 {[%emt 0:13:35]} 13. Bd2 {[%emt 0:08:07]} h6 {[%emt 0:05:03]} 14. Nf3 {[%emt 0:00:08]} O-O-O {[%emt 0:02:52]} 15. Nxd4 {[%emt 0:04:17]} exd4 {[%emt 0:03:53]} 16. Nd5 {[%emt 0:03:53]} Nxd5 {[%emt 0:01:56]} 17. exd5 {[%emt 0:00:35]} h5 {[%emt 0:00:18]} 18. Qf3 {[%emt 0:02:36]} f6 {[%emt 0:01:05]} 19. Qf5+ {[%emt 0:06:20]} Kb8 {[%emt 0:00:33]} 20. Rae1 {[%emt 0:00:51]} h4 {[%emt 0:01:30]} 21. Bf4 {[%emt 0:08:34]} Bxf4 {[%emt 0:05:37]} 22. gxf4 {[%emt 0:08:11]} h3 {[%emt 0:02:55]} 23. Bh1 {[%emt 0:07:52]} Rh4 {[%emt 0:08:09]} 24. Re6 {[%emt 0:02:18]} Rd6 {[%emt 0:04:22]} 25. Rfe1 {[%emt 0:00:41]} g6 {[%emt 0:06:34]} 26. Qxf6 {[%emt 0:00:55]} Rxe6 {[%emt 0:03:03]} 27. Qxh4 {[%emt 0:01:46]} Rxe1+ {[%emt 0:00:08]} 28. Qxe1 {[%emt 0:00:16]} Qxf4 {[%emt 0:00:19]} 29. Qg3 {[%emt 0:00:49]} Qxg3+ {[%emt 0:00:54]} 30. hxg3 {[%emt 0:00:08]} Bc8 {[%emt 0:02:46]} 31. Bf3 {[%emt 0:00:49]} Kc7 {[%emt 0:01:19]} 32. Kh2 {[%emt 0:00:38]} Kd6 {[%emt 0:00:25]} 33. g4 {[%emt 0:00:18]} Ke5 {[%emt 0:00:27]} 34. Kxh3 {[%emt 0:00:07]} Kf4 {[%emt 0:00:45]} 35. Bd1 {[%emt 0:01:06]} g5 {[%emt 0:01:15]} 36. Kg2 {[%emt 0:00:46]} Ke3 {[%emt 0:00:10]} 37. Bf3 {[%emt 0:00:14]} c4 {[%emt 0:00:19]} 38. Be4 {[%emt 0:00:52]} Bxg4 {[%emt 0:00:23]} 39. Kg3 {[%emt 0:00:04]} Bd7 {[%emt 0:00:34]} 40. d6 {[%emt 0:00:07]} b4 {[%emt 0:01:28]} 41. Bg6 {[%emt 0:31:09]} c3 {[%emt 0:30:09]} 42. bxc3 {[%emt 0:00:22]} bxc3 {[%emt 0:00:16]} 43. Bf7 {[%emt 0:00:29]} a5 {[%emt 0:00:56]} 44. a4 {[%emt 0:00:40]} Bxa4 {[%emt 0:00:21]} 45. Kg4 {[%emt 0:00:01]} Kd2 {[%emt 0:01:00]} 46. Kxg5 {[%emt 0:01:15]} Kxc2 {[%emt 0:00:06]} 47. Be6 {[%emt 0:01:05]} 0-1